bitfinex-derivatives/quotes_SOLF0:USTF0_20241227
["timestamp","ask_amount","ask_price","bid_price","bid_amount"]
[1735342116433,2.7179,184.23,184.22,3.14]
[1735342117225,2.7178,184.24,184.22,3.14]
[1735342118623,8.0945998,184.27,184.2,2.7183]
[1735342118936,2.7179,184.23,184.21,3.14]
[1735342119335,2.718,184.22,184.21,3.14]
[1735342120437,2.718,184.22,184.18,4.3499]
[1735342120631,2.7183,184.21,184.19,3.14]
[1735342121537,2.7181,184.22,184.19,3.14]
[1735342121737,8.0945998,184.25,184.19,5.8585]
[1735342122235,2.7179,184.23,184.19,5.8585]
[1735342128841,10.8124998,184.23,184.19,5.8585]
[1735342131244,2.718,184.22,184.19,5.8585]
[1735342136342,2.718,184.22,184.19,3.14]
[1735342138337,10.8122998,184.25,184.21,2.7182]
[1735342138937,8.0945998,184.25,184.21,2.7182]
[1735342139144,2.7178,184.24,184.21,2.7182]
[1735342139448,8.0945998,184.25,184.22,2.718]
[1735342140145,39.50929843,184.31,184.23,2.7178]
[1735342140146,8.0945998,184.27,184.23,2.7178]
[1735342140444,39.50929843,184.31,184.24,3.14]
[1735342140642,8.0945998,184.28,184.24,5.8577]
[1735342142138,8.0945998,184.28,184.24,3.14]
[1735342143244,2.7174,184.27,184.24,3.14]
[1735342145149,8.0945998,184.26,184.22,3.1486]
[1735342145450,2.7177,184.25,184.23,3.14]
[1735342149351,2.7177,184.24,184.23,3.14]
[1735342149550,8.0945998,184.24,184.2,3.14]
[1735342149948,10.8123998,184.24,184.2,5.8583]
[1735342152452,10.8123998,184.24,184.21,3.14]
[1735342153354,10.8123998,184.24,184.2,2.7183]
[1735342153651,10.8123998,184.24,184.21,3.14]
[1735342154350,10.8123998,184.24,184.21,5.8581]
[1735342154551,11.3027212,184.35,184.21,3.14]
[1735342154552,10.8121998,184.26,184.21,3.14]
[1735342154753,8.0945998,184.26,184.21,3.14]
[1735342155053,2.7176,184.25,184.21,5.8581]
[1735342156648,2.7169,184.3,184.23,2.7179]
[1735342156954,8.0945998,184.29,184.23,8.0945998]
[1735342157155,8.0945998,184.31,184.24,1.5888]
[1735342157355,10.8113998,184.31,184.27,2.7172]
[1735342157556,10.8113998,184.31,184.28,3.14]
[1735342157852,2.16280058,184.34,184.28,3.14]
[1735342158054,8.0945998,184.33,184.28,3.14]
[1735342158950,8.0945998,184.33,184.29,2.717]
[1735342160056,8.0945998,184.33,184.28,3.14]
[1735342161449,2.7167,184.31,184.28,3.14]
[1735342162352,8.0945998,184.33,184.28,3.14]
[1735342162550,10.8109998,184.33,184.28,3.14]
[1735342163157,39.49925364,184.36,184.28,3.14]
[1735342163356,10.8107998,184.35,184.31,2.7166]
[1735342166556,2.7165,184.33,184.32,3.12]
[1735342166758,10.8110998,184.33,184.32,3.12]
[1735342169754,2.7165,184.33,184.32,3.12]
[1735342170055,3.80826568,184.41,184.32,3.12]
[1735342170354,8.0945998,184.36,184.32,3.12]
[1735342170755,10.8106998,184.36,184.32,5.8365]
[1735342171161,8.0945998,184.36,184.32,5.8365]
[1735342172556,2.7161,184.35,184.32,5.8365]
[1735342175764,2.7161,184.35,184.32,3.12]
[1735342176354,2.7163,184.34,184.32,3.12]
[1735342180561,2.7167,184.32,184.31,3.12]
[1735342182558,2.7167,184.31,184.28,2.717]
[1735342182765,2.7167,184.31,184.29,3.12]
[1735342183863,2.7169,184.3,184.29,3.12]
[1735342186769,2.7171,184.29,184.24,9.6329998]
[1735342186968,2.7171,184.29,184.28,3.12]
[1735342187761,2.7171,184.29,184.27,3.12]
[1735342188670,8.0945998,184.3,184.27,3.12]
[1735342188876,8.0945998,184.28,184.26,3.12]
[1735342189370,2.7173,184.27,184.26,3.12]
[1735342189576,8.0945998,184.3,184.26,3.12]
[1735342190071,2.7171,184.29,184.26,3.12]
[1735342191768,2.7171,184.29,184.26,5.8374]
[1735342191975,8.0945998,184.32,184.26,3.12]
[1735342192577,8.0945998,184.32,184.27,3.12]
[1735342193176,2.7169,184.3,184.27,5.8372]
[1735342193680,39.4932564,184.38,184.27,5.8372]
[1735342193883,2.7168,184.31,184.27,5.8372]
[1735342197972,2.7168,184.31,184.28,2.7171]
[1735342198181,3.80826568,184.41,184.27,11.2145998]
[1735342198479,8.0945998,184.35,184.27,11.2145998]
[1735342198676,10.8107998,184.35,184.29,2.7169]
[1735342198883,10.8107998,184.35,184.27,11.2145998]
[1735342199079,10.8107998,184.35,184.29,8.0945998]
[1735342199279,10.8107998,184.35,184.31,2.7166]
[1735342199484,10.8107998,184.35,184.32,3.12]
[1735342199979,2.7162,184.35,184.32,3.12]
[1735342200184,2.716,184.36,184.32,5.8365]
[1735342201083,10.8107998,184.35,184.32,5.8365]
[1735342201287,8.0945998,184.37,184.33,2.7163]
[1735342201580,8.0945998,184.39,184.32,3.12]
[1735342202377,8.0945998,184.39,184.33,8.0945998]
[1735342202682,2.16186568,184.41,184.35,8.0945998]
[1735342203277,2.16186568,184.41,184.38,2.7157]
[1735342203481,2.16186568,184.41,184.39,3.12]
[1735342203978,10.25646548,184.41,184.39,3.12]
[1735342205780,1.6058,184.48,184.39,5.8355]
[1735342206083,1.6058,184.48,184.39,3.12]
[1735342206287,8.0945998,184.44,184.39,3.12]
[1735342207076,8.0945998,184.42,184.39,3.12]
[1735342213382,8.0945998,184.42,184.37,2.7158]
[1735342213687,8.0945998,184.4,184.34,2.7161]
[1735342213880,8.0945998,184.4,184.37,3.12]
[1735342214087,8.0945998,184.4,184.35,3.12]
[1735342216489,8.0945998,184.4,184.35,5.836]
[1735342216896,8.0945998,184.4,184.35,3.12]
[1735342217485,8.0945998,184.4,184.33,8.0945998]
[1735342217687,8.0945998,184.4,184.34,5.8362]
[1735342219591,8.0945998,184.4,184.35,2.7161]
[1735342221293,8.0945998,184.4,184.34,5.8362]
[1735342221796,8.0945998,184.38,184.33,3.12]
[1735342221993,8.0945998,184.36,184.31,3.12]
[1735342222793,8.0945998,184.34,184.31,3.12]
[1735342225094,8.0945998,184.36,184.31,3.12]
[1735342232694,8.0945998,184.32,184.26,3.12]
[1735342232998,3.12,184.4,184.26,3.12]
[1735342232999,2.717,184.29,184.26,3.12]
[1735342233606,2.717,184.29,184.24,4.3341]
[1735342233902,2.7172,184.28,184.25,3.12]
[1735342238500,8.0945998,184.3,184.25,3.12]
[1735342238803,8.0945998,184.3,184.26,3.12]
[1735342239005,8.0945998,184.3,184.24,3.12]
[1735342240399,2.7174,184.27,184.24,3.12]
[1735342242810,8.0945998,184.3,184.24,3.12]
[1735342243010,2.7175,184.26,184.24,3.12]
[1735342244407,8.0945998,184.3,184.24,5.8377]
[1735342245305,1.6341,184.34,184.25,8.0945998]
[1735342245611,8.0945998,184.36,184.29,8.0945998]
[1735342245807,2.7161,184.35,184.31,2.7166]
[1735342246110,8.0945998,184.38,184.31,8.0945998]
[1735342246308,2.7156,184.39,184.35,2.7161]
[1735342246513,2.7156,184.39,184.35,5.8361]
[1735342246707,2.7156,184.39,184.35,3.12]
[1735342251716,2.7157,184.38,184.35,3.12]
[1735342252510,2.7155,184.39,184.35,3.12]
[1735342257313,2.7157,184.38,184.35,3.12]
[1735342257516,8.0945998,184.4,184.35,3.12]
[1735342257720,8.0945998,184.38,184.35,3.12]
[1735342257917,2.7158,184.37,184.35,3.12]
[1735342258919,10.8102998,184.38,184.35,3.12]
[1735342259620,2.716,184.36,184.34,3.12]
[1735342263728,2.7156,184.39,184.35,2.716]
[1735342264218,2.7156,184.39,184.36,2.716]
[1735342264620,10.8099998,184.41,184.34,11.2145998]
[1735342264816,10.25632939,184.43,184.38,2.7155]
[1735342265019,10.25632939,184.43,184.39,3.12]
[1735342265729,12.97142939,184.43,184.39,5.8355]
[1735342265930,10.25632939,184.43,184.39,5.8355]
[1735342266124,10.25632939,184.43,184.39,3.12]
[1735342268429,2.7152,184.41,184.39,3.12]
[1735342269924,10.25632939,184.43,184.39,3.12]
[1735342270128,8.0945998,184.41,184.37,3.12]
[1735342270427,8.0945998,184.39,184.36,3.12]
[1735342270833,8.0945998,184.39,184.33,8.0945998]
[1735342271034,8.0945998,184.39,184.34,3.12]
[1735342271734,2.7157,184.38,184.34,5.8362]
[1735342275242,8.0945998,184.39,184.34,3.12]
[1735342275438,8.0945998,184.37,184.34,3.12]
[1735342275633,8.0945998,184.37,184.33,3.12]
[1735342276032,2.7161,184.35,184.33,3.12]
[1735342276237,2.7161,184.35,184.32,3.2806]
[1735342276638,2.7161,184.35,184.33,3.12]
[1735342277834,2.16172959,184.43,184.31,1.6962]
[1735342278041,8.0945998,184.34,184.27,8.0945998]
[1735342278234,8.0945998,184.34,184.28,3.12]
[1735342278630,2.7167,184.31,184.29,3.12]
[1735342280138,2.7167,184.31,184.27,10.8118998]
[1735342280341,2.7167,184.31,184.28,3.12]
[1735342282847,2.7174,184.26,184.22,32.60060332]
[1735342283142,8.0945998,184.28,184.23,3.12]
[1735342283531,2.7177,184.25,184.23,3.12]
[1735342283737,8.0945998,184.26,184.23,3.12]
[1735342284036,8.0945998,184.24,184.2,1.6609]
[1735342284240,2.718,184.23,184.2,3.12]
[1735342284444,8.0945998,184.22,184.17,29.88270332]
[1735342284937,2.7184,184.2,184.16,3.12]
[1735342286142,8.0945998,184.22,184.16,3.12]
[1735342286340,2.7185,184.19,184.16,3.12]
[1735342287342,2.7185,184.19,184.15,12.4774998]
[1735342287547,2.7185,184.19,184.16,3.12]
[1735342289244,3.12,184.29,184.15,1.664]
[1735342289245,8.0945998,184.2,184.15,1.664]
[1735342289443,8.0945998,184.2,184.15,3.12]
[1735342290344,2.719,184.16,184.11,67.2741998]
[1735342290641,8.0945998,184.18,184.12,3.12]
[1735342291446,2.7191,184.15,184.11,10.8141998]
[1735342291640,2.7191,184.15,184.12,3.12]
[1735342292747,2.7189,184.16,184.12,5.8395]
[1735342299249,8.0945998,184.18,184.12,3.12]
[1735342299441,2.7193,184.14,184.12,3.12]
[1735342300349,2.7195,184.12,184.11,3.12]
[1735342301246,2.7196,184.12,184.09,3.12]
[1735342303949,8.0945998,184.14,184.09,3.12]
[1735342304151,10.8138998,184.14,184.1,2.7197]
[1735342304956,1.6912,184.23,184.09,3.12]
[1735342305151,8.0945998,184.16,184.12,2.7194]
[1735342305654,8.0945998,184.14,184.09,3.12]
[1735342306057,8.0945998,184.16,184.09,11.2145998]
[1735342307753,8.0945998,184.16,184.12,2.7194]
[1735342308355,10.8134998,184.16,184.12,2.7194]
[1735342309149,2.7192,184.15,184.1,2.7197]
[1735342309353,2.7192,184.15,184.09,11.2145998]
[1735342310155,2.7192,184.15,184.1,2.7197]
[1735342310355,2.7192,184.15,184.09,11.2145998]
[1735342310952,2.7192,184.15,184.11,2.7195]
[1735342311460,8.0945998,184.16,184.12,2.7194]
[1735342311461,10.8134998,184.16,184.12,2.7194]
[1735342313252,2.719,184.16,184.12,2.7194]
[1735342313452,10.8135998,184.16,184.12,2.7194]
[1735342314357,8.0945998,184.16,184.12,2.7194]
[1735342314558,2.7191,184.15,184.12,2.7194]
[1735342318560,2.7191,184.15,184.11,2.7196]
[1735342319159,2.7191,184.15,184.11,10.22506768]
[1735342319858,2.7191,184.15,184.12,11.88363006]
[1735342320759,2.7191,184.15,184.13,4.37816238]
[1735342321157,8.0945998,184.16,184.13,4.37816238]
[1735342321359,2.7192,184.14,184.13,4.37816238]
[1735342321958,2.7192,184.14,184.12,29.88270332]
[1735342322560,2.7194,184.13,184.12,29.88270332]
[1735342323964,8.0945998,184.14,184.09,7.50546768]
[1735342324157,2.7198,184.1,184.09,7.50546768]
[1735342324558,10.8143998,184.1,184.09,7.50546768]
[1735342325261,8.0945998,184.1,184.06,93.22479867]
[1735342325555,2.7202,184.07,184.06,90.10479867]
[1735342331166,2.7209,184.03,184.01,3.12]
[1735342332459,8.0945998,184.07,184.01,3.12]
[1735342333062,8.0945998,184.05,184.01,3.12]
[1735342333763,2.7207,184.04,184.01,3.12]
[1735342333962,8.0945998,184.05,184.01,3.12]
[1735342334363,2.7209,184.03,184.01,3.12]
[1735342334863,2.721,184.02,184.01,3.12]
[1735342335463,3.12,184.13,183.94,74.74050542]
[1735342335464,2.7215,183.99,183.95,2.722]
[1735342335658,8.0945998,184.01,183.95,3.12]
[1735342335866,8.0945998,184.01,183.94,12.26633373]
[1735342336171,8.0945998,184.01,183.95,3.12]
[1735342336565,2.7219,183.96,183.95,3.12]
[1735342340372,8.0945998,183.97,183.92,3.12]
[1735342340573,8.0945998,183.97,183.9,8.0945998]
[1735342340773,2.7223,183.94,183.91,3.12]
[1735342341273,8.0945998,183.97,183.91,3.12]
[1735342341473,2.7223,183.94,183.91,3.12]
[1735342342874,8.0945998,183.97,183.91,3.12]
[1735342343168,2.7221,183.95,183.91,5.8426]
[1735342343373,39.56858613,184.04,183.91,3.12]
[1735342343573,2.7217,183.98,183.94,2.7221]
[1735342344570,8.0945998,183.97,183.91,3.12]
[1735342344776,2.7219,183.96,183.92,2.7223]
[1735342350277,2.7221,183.95,183.91,5.8426]
[1735342350472,2.7221,183.95,183.91,2.7226]
[1735342350681,2.7221,183.95,183.91,5.8426]
[1735342351972,2.7223,183.94,183.91,3.12]
[1735342352179,8.0945998,183.95,183.91,3.12]
[1735342352578,2.7225,183.93,183.89,2.7229]
[1735342353078,8.0945998,183.93,183.89,2.7229]
[1735342353278,2.7226,183.91,183.88,7.5157]
[1735342354290,2.7226,183.91,183.88,5.843]
[1735342356481,2.7226,183.91,183.88,2.723]
[1735342356680,2.7231,183.88,183.81,1.5412]
[1735342356891,8.0945998,183.91,183.84,11.2345998]
[1735342357491,2.723,183.89,183.85,2.7235]
[1735342359094,8.0945998,183.91,183.84,11.2345998]
[1735342359293,1.7382,183.99,183.9,8.0945998]
[1735342359492,8.0945998,183.96,183.9,11.2345998]
[1735342359693,2.7221,183.95,183.92,2.7224]
[1735342359885,2.7221,183.95,183.9,11.2345998]
[1735342361291,0.1781,184.03,183.92,8.0945998]
[1735342361497,8.0945998,183.99,183.92,8.0945998]
[1735342361797,8.0945998,183.99,183.96,2.7219]
[1735342362197,2.7213,184.0,183.96,2.7219]
[1735342362499,10.8158998,184.0,183.96,2.7219]
[1735342363593,10.8158998,184.0,183.95,5.862]
[1735342367604,2.721,184.03,183.96,8.0945998]
[1735342367901,10.8155998,184.03,183.96,8.0945998]
[1735342368200,10.8155998,184.03,183.98,2.7214]
[1735342368396,8.0945998,184.03,183.98,2.7214]
[1735342368601,2.721,184.02,183.98,2.7214]
[1735342369692,42.28938613,184.04,184.0,2.7212]
[1735342369895,50.38398593,184.04,184.0,5.8412]
[1735342370597,10.8153998,184.04,184.0,5.8412]
[1735342371002,8.0945998,184.04,184.02,2.721]
[1735342371603,10.8149998,184.06,184.02,2.721]
[1735342371903,8.0945998,184.07,184.03,2.7208]
[1735342372103,8.0945998,184.07,184.0,11.2145998]
[1735342372403,1.6533,184.1,184.0,11.2145998]
[1735342372404,8.0945998,184.05,184.0,3.12]
[1735342372901,2.7208,184.03,184.0,3.12]
[1735342374006,8.0945998,184.05,184.0,3.12]
[1735342374007,2.721,184.02,184.0,3.12]
[1735342376909,8.0945998,184.05,184.0,3.12]
[1735342377213,2.7211,184.01,184.0,3.12]
[1735342378809,2.7211,184.01,183.99,3.2534]
[1735342379006,2.7208,184.04,184.0,2.7212]
[1735342379905,8.0945998,184.06,183.99,14.4679998]
[1735342380111,2.721,184.02,183.99,6.3734]
[1735342380308,2.721,184.02,183.99,4.693]
[1735342380610,2.7212,184.01,183.99,4.693]
[1735342382010,2.7212,184.01,183.99,1.573]
[1735342382312,2.7212,184.01,183.99,4.693]
[1735342382806,8.0945998,184.02,183.95,8.0945998]
[1735342383011,8.0945998,184.02,183.96,3.12]
[1735342383908,2.7215,183.99,183.96,3.12]
[1735342384513,2.7215,183.99,183.96,5.8418]
[1735342386007,8.0945998,184.0,183.93,1.5498]
[1735342386210,8.0945998,184.0,183.94,3.12]
[1735342386611,2.7221,183.95,183.92,3.12]
[1735342386806,8.0945998,183.98,183.92,3.12]
[1735342388311,8.0945998,183.98,183.91,4.4226]
[1735342388512,2.7222,183.94,183.92,3.12]
[1735342389414,8.0945998,183.96,183.88,1.551]
[1735342389610,8.0945998,183.94,183.89,3.12]
[1735342390211,2.7225,183.92,183.89,3.12]
[1735342390412,8.0945998,183.94,183.89,3.12]
[1735342390710,8.0945998,183.94,183.88,1.551]
[1735342390912,8.0945998,183.94,183.88,4.671]
[1735342391610,2.7227,183.91,183.88,4.671]
[1735342392020,2.7228,183.9,183.87,11.2145998]
[1735342392313,8.0945998,183.92,183.87,3.12]
[1735342392917,2.7229,183.89,183.87,3.12]
[1735342393110,2.7229,183.89,183.85,13.9379998]
[1735342393306,2.7229,183.89,183.85,10.8179998]
[1735342393511,2.7229,183.89,183.85,2.7234]
[1735342393710,2.7229,183.89,183.85,5.8434]
[1735342394110,2.7231,183.88,183.84,2.7236]
[1735342394316,2.7231,183.88,183.84,10.8181998]
[1735342396216,2.7233,183.87,183.83,5.8438]
[1735342396412,8.0945998,183.9,183.83,8.0945998]
[1735342397423,2.7233,183.87,183.83,10.8183998]
[1735342398218,2.7236,183.85,183.81,10.8186998]
[1735342399219,2.7237,183.84,183.8,5.8442]
[1735342399423,2.7237,183.84,183.8,10.8187998]
[1735342399719,2.7237,183.84,183.8,5.8642]
[1735342399918,8.0945998,183.86,183.8,11.2345998]
[1735342400118,2.7235,183.85,183.81,2.7241]
[1735342400719,8.0945998,183.86,183.8,11.2345998]
[1735342400913,2.7237,183.84,183.8,10.8187998]
[1735342401119,2.7237,183.84,183.8,2.7242]
[1735342401316,2.7237,183.84,183.79,11.2345998]
[1735342401515,2.7237,183.84,183.79,5.8644]
[1735342401715,2.7239,183.83,183.79,3.14]
[1735342402420,2.7239,183.83,183.79,5.8644]
[1735342403416,2.7239,183.83,183.79,2.7244]
[1735342405623,2.724,183.82,183.78,13.9590998]
[1735342410521,8.0945998,183.82,183.78,3.14]
[1735342411218,8.0945998,183.8,183.78,3.14]
[1735342411525,10.8189998,183.8,183.78,3.14]
[1735342411719,10.8189998,183.8,183.76,4.2827]
[1735342412025,8.0945998,183.78,183.71,3.14]
[1735342412224,8.0945998,183.76,183.71,3.14]
[1735342412419,10.8195998,183.76,183.71,3.14]
[1735342412619,8.0945998,183.78,183.71,3.14]
[1735342413119,10.8191998,183.78,183.72,9.24054938]
[1735342414225,10.8191998,183.78,183.74,2.725]
[1735342415321,2.7247,183.77,183.73,2.7253]
[1735342415826,2.7239,183.83,183.74,8.0945998]
[1735342416024,8.0945998,183.86,183.8,8.0945998]
[1735342416229,4.8327,183.94,183.82,8.0945998]
[1735342416425,10.8174998,183.89,183.82,8.0945998]
[1735342416729,10.8174998,183.89,183.82,9.7891998]
[1735342417025,2.7231,183.88,183.84,2.7235]
[1735342417229,8.0945998,183.87,183.82,1.6946]
[1735342417434,8.0945998,183.87,183.81,3.14]
[1735342417623,10.8180998,183.85,183.81,3.14]
[1735342417824,8.0945998,183.85,183.81,3.14]
[1735342419225,2.7237,183.84,183.81,3.14]
[1735342419533,8.0945998,183.83,183.78,3.14]
[1735342419731,8.0945998,183.81,183.78,3.14]
[1735342419932,8.0945998,183.81,183.78,5.8644]
[1735342420326,8.0945998,183.81,183.78,3.14]
[1735342421833,10.8187998,183.81,183.78,3.14]
[1735342422836,8.0945998,183.81,183.78,3.14]
[1735342423437,10.8187998,183.81,183.78,3.14]
[1735342428147,2.7243,183.8,183.78,3.14]
[1735342428550,1.6832,183.87,183.78,3.14]
[1735342428551,8.0945998,183.79,183.78,3.14]
[1735342428748,8.0945998,183.79,183.73,12.38913373]
[1735342428943,8.0945998,183.74,183.73,7.55453373]
[1735342429649,8.0945998,183.74,183.72,1.14594958]
[1735342430448,10.8196998,183.74,183.72,1.14594958]
[1735342430653,8.0945998,183.74,183.72,1.14594958]
[1735342430942,2.7252,183.74,183.72,1.14594958]
[1735342431648,8.0945998,183.74,183.72,1.14594958]
[1735342435348,0.1796,183.86,183.72,1.14594958]
[1735342435547,8.0945998,183.77,183.72,1.14594958]
[1735342436452,0.1796,183.86,183.72,1.14594958]
[1735342436654,8.0945998,183.78,183.72,1.14594958]
[1735342437049,2.7243,183.8,183.72,9.24054938]
[1735342437257,8.0945998,183.79,183.72,9.24054938]
[1735342438154,8.0945998,183.77,183.72,1.14594958]
[1735342439346,8.0945998,183.77,183.74,2.725]
[1735342440651,8.0945998,183.77,183.72,1.14594958]
[1735342440957,8.0945998,183.75,183.72,1.14594958]
[1735342441259,8.0945998,183.77,183.72,1.14594958]
[1735342442155,8.0945998,183.75,183.72,1.14594958]
[1735342442561,8.0945998,183.73,183.72,1.14594958]
[1735342444052,10.8198998,183.73,183.72,1.14594958]
[1735342446562,2.7257,183.7,183.67,4.8777]
[1735342446762,8.0945998,183.69,183.67,4.8777]
[1735342446966,8.0945998,183.69,183.67,1.6977]
[1735342447459,10.8204998,183.69,183.67,1.6977]
[1735342447666,8.0945998,183.69,183.67,1.6977]
[1735342447963,8.0945998,183.69,183.67,4.4239]
[1735342448164,8.0945998,183.69,183.67,1.6977]
[1735342449662,8.0945998,183.69,183.66,3.18]
[1735342450265,10.8204998,183.69,183.66,3.18]
[1735342451069,8.0945998,183.67,183.66,3.18]
[1735342451465,8.0945998,183.67,183.65,2.7264]
[1735342452172,8.0945998,183.69,183.64,3.18]
[1735342452469,8.0945998,183.73,183.65,8.0945998]
[1735342453071,8.0945998,183.71,183.65,8.0945998]
[1735342454572,3.18,183.83,183.65,8.0945998]
[1735342454772,8.0945998,183.73,183.65,8.0945998]
[1735342455065,8.0945998,183.73,183.7,2.7257]
[1735342455270,8.0945998,183.73,183.7,5.9057]
[1735342455771,8.0945998,183.71,183.7,5.9057]
[1735342457568,8.0945998,183.71,183.69,2.7259]
[1735342457769,8.0945998,183.71,183.69,5.9059]
[1735342458673,8.0945998,183.71,183.69,3.18]
[1735342458870,8.0945998,183.71,183.63,1.6854]
[1735342459068,8.0945998,183.68,183.67,3.18]
[1735342460476,8.0945998,183.68,183.67,5.9062]
[1735342461276,2.7253,183.73,183.69,2.7259]
[1735342461670,10.8198998,183.73,183.69,2.7259]
[1735342461976,10.8198998,183.73,183.67,3.18]
[1735342461977,3.18,183.82,183.71,2.7255]
[1735342462175,8.0945998,183.73,183.71,2.7255]
[1735342463572,8.0945998,183.73,183.67,3.18]
[1735342463773,8.0945998,183.73,183.7,2.7257]
[1735342466774,10.8198998,183.73,183.67,3.18]
[1735342467379,8.0945998,183.71,183.7,2.7257]
[1735342467576,8.0945998,183.71,183.65,30.24363578]
[1735342467577,8.0945998,183.71,183.65,33.42363578]
[1735342467776,8.0945998,183.69,183.65,33.42363578]
[1735342468579,8.0945998,183.69,183.66,2.7263]
[1735342475287,8.0945998,183.69,183.65,3.18]
[1735342476282,8.0945998,183.69,183.63,1.6854]
[1735342476585,8.0945998,183.67,183.64,3.2]
[1735342477192,8.0945998,183.67,183.65,2.7263]
[1735342478187,8.0945998,183.67,183.64,3.2]
[1735342478388,8.0945998,183.65,183.63,5.9267]
[1735342478792,8.0945998,183.65,183.64,2.7266]
[1735342480094,8.0945998,183.65,183.63,5.9267]
[1735342481195,8.0945998,183.65,183.63,3.2]
[1735342481495,8.0945998,183.65,183.64,2.7266]
[1735342483396,8.0945998,183.65,183.63,3.2]
[1735342485196,8.0945998,183.65,183.63,5.9268]
[1735342488799,8.0945998,183.65,183.63,3.2]
[1735342489201,10.8210998,183.65,183.63,3.2]
[1735342489498,10.8210998,183.65,183.61,3.2]
[1735342489798,8.0945998,183.63,183.61,3.2]
[1735342490394,8.0945998,183.63,183.61,5.927]
[1735342491695,8.0945998,183.63,183.61,2.727]
[1735342491896,8.0945998,183.63,183.6,2.7272]
[1735342492102,8.0945998,183.61,183.6,2.7272]
[1735342492299,8.0945998,183.61,183.6,5.9272]
[1735342493500,8.0945998,183.61,183.6,2.7272]
[1735342493707,8.0945998,183.61,183.56,7.56090894]
[1735342493898,8.0945998,183.57,183.56,7.56090894]
[1735342495199,8.0945998,183.57,183.55,2.728]
[1735342495505,8.0945998,183.57,183.54,3.2]
[1735342495705,8.0945998,183.55,183.54,3.2]
[1735342495907,8.0945998,183.55,183.53,2.7281]
[1735342496306,1.5805,183.66,183.53,3.2]
[1735342496505,8.0945998,183.56,183.53,3.2]
[1735342497509,8.0945998,183.56,183.54,2.7281]
[1735342499908,8.0945998,183.56,183.55,3.2]
[1735342500708,8.0945998,183.56,183.45,63.64727158]
[1735342500903,3.16,183.61,183.46,24.38152684]
[1735342501102,8.0945998,183.51,183.48,2.729]
[1735342501302,8.0945998,183.51,183.48,5.889]
[1735342501515,2.7283,183.53,183.48,5.889]
[1735342501710,8.0945998,183.51,183.48,2.729]
[1735342502011,8.0945998,183.51,183.47,5.8891]
[1735342502203,8.0945998,183.49,183.45,30.24363578]
[1735342502407,8.0945998,183.47,183.45,30.24363578]
[1735342503113,8.0945998,183.47,183.45,2.7293]
[1735342504911,8.0945998,183.47,183.44,5.8896]
[1735342506107,1.5576,183.59,183.46,8.0945998]
[1735342506307,2.7279,183.56,183.48,8.0945998]
[1735342506517,1.5576,183.59,183.49,4.7809]
[1735342506702,8.0945998,183.55,183.49,4.7809]
[1735342507107,0.1876,183.67,183.49,4.7809]
[1735342507108,0.1876,183.67,183.52,8.0945998]
[1735342507307,8.0945998,183.59,183.52,8.0945998]
[1735342507506,8.0945998,183.59,183.55,2.7278]
[1735342507710,8.0945998,183.59,183.56,3.16]
[1735342508307,8.0945998,183.57,183.56,3.16]
[1735342508508,8.0945998,183.57,183.5,3.2906]
[1735342508709,8.0945998,183.55,183.51,3.16]
[1735342509216,8.0945998,183.55,183.52,2.7283]
[1735342509510,8.0945998,183.55,183.51,3.16]
[1735342509811,8.0945998,183.53,183.51,3.16]
[1735342510608,2.7284,183.52,183.51,3.16]
[1735342515117,2.7284,183.52,183.49,1.6209]
[1735342515312,8.0945998,183.51,183.49,1.6209]
[1735342519816,8.0945998,183.51,183.46,3.16]
[1735342520017,8.0945998,183.47,183.45,3.16]
[1735342520216,10.8237998,183.47,183.45,3.16]
[1735342522220,10.8237998,183.47,183.43,3.2604]
[1735342522412,10.8237998,183.47,183.43,6.4204]